Cogmind - Beta 16.1 @@@ ROGUE MODE // 2026.02.13 @ 19:31:54 Player: eVander Result: Destroyed by G-47 Trooper with Particle Gun Performance ------------- Evolutions (2) 1000 Regions Visited (3) 600 Robots Destroyed (25) 125 Value Destroyed (901) 901 Prototype IDs (1) 20 Alien Tech Used (0) 0 Bonus (0) 0 TOTAL SCORE: 2646 Bonus ------- None Cogmind --------- Core Integrity 0/550 Matter 295/300 Energy 100/100 System Corruption 0% Temperature Warm (159) Movement Core (50) Location -8/Materials Parts ------- > --- POWER (1) -------- (None) > --- PROPULSION (4) --- (None) > --- UTILITY (4) ------ Improved Signal Interpreter Targeting Computer > --- WEAPON (2) ------- Katana > --- INVENTORY (5) ---- Light Nuclear Core Peak State ------------ > --- POWER ------------ Light Nuclear Core > --- PROPULSION ------- Aluminum Leg Aluminum Leg Aluminum Leg Improved Aluminum Leg > --- UTILITY ---------- Improved Signal Interpreter Targeting Computer Power Shielding Improved Light Armor Plating > --- WEAPON ----------- Advanced Beam Rifle Ion Cannon > --- INVENTORY -------- (None) [Rating: 23] Favorites ----------- Power Light Nuclear Core Engine Light Ion Engine Power Core Light Nuclear Core Propulsion Aluminum Leg Leg Aluminum Leg Wheel Compact Wheel Utility Targeting Computer Device ECM Suite Storage Small Storage Unit Processor Targeting Computer Protection Power Shielding Weapon Ion Cannon Energy Gun Advanced Beam Rifle Energy Cannon Ion Cannon Launcher Grenade Launcher Slashing Weapon Katana Build | -11 -10 -9 -8 ------- Run | Yrd Mat Mat Mat Slots Evolved 4 | . . 2 2 Power . | . . . . Propulsion 2 | . . 1 1 Utility 2 | . . 1 1 Weapon . | . . . . Parts Attached 30 | 5 3 9 13 Power 5 | 1 . 1 3 Engine 2 | 1 . . 1 Core 3 | . . 1 2 Reactor . | . . . . Propulsion 10 | 2 . 3 5 Treads . | . . . . Leg 8 | . . 3 5 Wheel 2 | 2 . . . Hover . | . . . . Flight . | . . . . Utility 6 | 1 2 1 2 Device 1 | . 1 . . Storage 1 | 1 . . . Processor 2 | . 1 1 . Hackware . | . . . . Protection 2 | . . . 2 Artifact . | . . . . Weapon 9 | 1 1 4 3 Energy Gun 3 | 1 . . 2 Energy Cannon 4 | . . 4 . Ballistic Gun . | . . . . Ballistic Cannon . | . . . . Launcher 1 | . 1 . . Special Weapon . | . . . . Impact Weapon . | . . . . Slashing Weapon 1 | . . . 1 Piercing Weapon . | . . . . Special Melee Weapon . | . . . . Unidentified Prototypes 1 | . . . 1 Parts Lost 20 | . . 3 17 Power 4 | . . . 4 Propulsion 8 | . . . 8 Utility 3 | . . 1 2 Weapon 5 | . . 2 3 Highest Loss Streak 9 | . . 3 9 To Critical Strikes . | . . . . Average Backups 1 | 1 1 3 . Power 1 | . 1 1 . Propulsion . | . . . . Utility . | . . . . Weapon . | . . 1 . Tool/Special . | . . . . Unused Backups 2 | . . 1 1 Power 2 | . . 1 1 Propulsion . | . . . . Utility . | . . . . Weapon . | . . . . Tool/Special . | . . . . Average Slot Usage (%) 81 | . 79 89 78 Engine 4 | . 14 . 2 Core 5 | . . 10 5 Leg 18 | . . 22 25 Wheel 5 | . 18 3 . Device 2 | . . 9 . Storage 3 | . 14 . . Processor 17 | . 10 21 18 Protection 5 | . . . 11 Energy Gun 7 | . 14 . 9 Energy Cannon 8 | . . 19 5 Launcher 1 | . 7 . . Peak Build Rating 23 | 5 6 19 23 Average Rating 14 | 3 5 16 17 On Entrance 7 | . 5 6 17 Avg Prop Armor Cover (%) . | . . . . Naked Turns . | . . . . Heaviest Build 19 | 10 13 19 17 Greatest Support 48 | 32 32 33 48 Greatest Overweight (x) 3 | . . 1 3 Average Overweight (x) . | . . . . Largest Inventory Capacity 8 | 8 8 5 5 Average Capacity 5 | 6 7 5 5 Most Carried 5 | 4 3 5 3 Average Carried 1 | 1 1 3 . Final Capacity 8 | 8 5 5 5 Final Carried 2 | 1 1 2 1 Class Distribution -------------------- 80% | Mutant 19% | Scavenger-Mutant Dominant Class ---------------- Mutant | -10/Materials Mutant | -9/Materials Mutant | -8/Materials Resources | -11 -10 -9 -8 ----------- Run | Yrd Mat Mat Mat Matter Collected 510 | 150 178 90 92 Remotely . | . . . . Salvage Created 971 | . 63 266 642 Parts 58 | . 4 24 30 Haulers Intercepted . | . . . . Recyclers Shooed . | . . . . Parts Field Recycled . | . . . . Retrieved Matter . | . . . . Parts Self-Destructed . | . . . . Prevented . | . . . . Parts Restored . | . . . . Kills | -11 -10 -9 -8 ------- Run | Yrd Mat Mat Mat Combat Hostiles Destroyed 23 | . 2 9 12 Melee 1 | . . . 1 Guns 7 | . 2 . 5 Cannons 14 | . . 9 5 Classes Destroyed 6 | . 2 3 1 Builder 1 | . 1 . . Watcher 1 | . . 1 . Swarmer 4 | . . 4 . Grunt 12 | . 2 4 6 Duelist 3 | . . 1 2 Sentry 4 | . . . 4 Best Kill Streak 6 | . 2 6 4 Combat Bots Only 6 | . 1 6 4 Max Kills in Single Turn 1 | . 1 1 1 Gunslinging . | . . . . Exploded . | . . . . Melee 1 | . . . 1 Uniques/NPCs Destroyed . | . . . . Combat | -11 -10 -9 -8 -------- Run | Yrd Mat Mat Mat Hostile Shots Fired 197 | . 11 39 147 Missed 44 | . 3 5 36 Hits 153 | . 8 34 111 Melee 11 | . . 7 4 Projectile 142 | . 8 27 107 Critical Strikes 8 | . . 3 5 Damage Taken 2483 | . 121 539 1823 Core 757 | . 18 183 556 Absorbed by Shields . | . . . . Redirected to Shielding 50 | . . . 50 Core Remaining (%) 82 | 100 92 54 . Volleys Fired 86 | . 9 22 55 Largest 2 | . 2 2 2 Hottest 121 | . 80 120 121 Shots Fired 132 | . 14 42 76 Gun 47 | . 9 . 38 Cannon 80 | . . 42 38 Launcher 5 | . 5 . . Special . | . . . . Kinetic . | . . . . Thermal 127 | . 9 42 76 Explosive 5 | . 5 . . Electromagnetic . | . . . . Robot Hit Streak 7 | . 6 7 7 Robot Miss Streak 3 | . 2 2 3 Penetration Max . | . . . . Secondary Targets 1 | . . . 1 Max Gunslinging Chain 1 | . . . 1 Shots Hit Robots 87 | . 11 22 54 Core Hits 35 | . 5 11 19 Critical Kills 1 | . . . 1 Critical Parts Destroyed . | . . . . Critical Strikes 2 | . . . 2 Burn 1 | . . . 1 Meltdown 1 | . . . 1 Melee Attacks 3 | . . . 3 Impact . | . . . . Slashing 3 | . . . 3 Piercing . | . . . . Sneak Attacks . | . . . . Combat Hostiles . | . . . . Follow-up Attacks . | . . . . Damage Inflicted 1936 | . 260 516 1160 Guns 635 | . 98 . 537 Cannons 1037 | . . 510 527 Explosions 160 | . 160 . . Melee 94 | . . . 94 Ramming 10 | . 2 6 2 Kinetic . | . . . . Thermal 1672 | . 98 510 1064 Explosive 160 | . 160 . . Electromagnetic . | . . . . Impact . | . . . . Slashing 94 | . . . 94 Piercing . | . . . . Highest Corruption 10 | . . 10 . Average Corruption 2 | . . 2 . Corruption Purged . | . . . . Corruption Blocked . | . . . . Effects 4 | . . 4 . Message Errors 1 | . . 1 . Matter Fused 1 | . . 1 . Parts Fused 1 | . . 1 . Misdirections 1 | . . 1 . Overload Shots . | . . . . Overflow Damage . | . . . . Projectiles . | . . . . Explosions . | . . . . Melee . | . . . . Knockbacks . | . . . . Impact . | . . . . Kinetic . | . . . . Secondary . | . . . . Self-Inflicted Damage 35 | . 34 . 1 Shots 2 | . 2 . . Rammed 2 | . 1 . 1 Targets Rammed 6 | . 1 4 1 Kicked 4 | . . 4 . Crushed . | . . . . Highest Temperature 523 | . 120 523 371 Average Temperature 150 | . 53 235 115 Received Heat Transfer 978 | . 48 48 882 Effects 18 | . . 16 2 Shutdowns 3 | . . 3 . Interference 3 | . . 1 2 Short Circuit 1 | . . 1 . Damage (major) 10 | . . 10 . Damage (core) 1 | . . 1 . Siege Activations . | . . . . Martial Activations . | . . . . Shielding Activations . | . . . . Robots Disrupted . | . . . . Combat Hostiles . | . . . . Robots Corrupted . | . . . . Combat Hostiles . | . . . . Parts Fried . | . . . . Impact Corruptions . | . . . . Robots Melted 1 | . . . 1 Combat Hostiles 1 | . . . 1 Parts Melted 2 | . 1 . 1 Heat Transferred 3071 | . 296 814 1961 Parts Sabotaged . | . . . . Parts Stolen . | . . . . Parts Stripped . | . . . . Power Chain Reactions . | . . . . Alert | -11 -10 -9 -8 ------- Run | Yrd Mat Mat Mat Maximum Alert Level . | . . . . Low Security (%) 100 | 100 100 100 100 Level 1 . | . . . . Level 2 . | . . . . Level 3 . | . . . . Level 4 . | . . . . Level 5 . | . . . . High Security . | . . . . Max Security . | . . . . Peak Influence 137 | . 69 137 77 Initial 32 | . . 3 32 Average 30 | . 23 39 31 Influence Increases 658 | . 99 226 333 Destroy 0b10 Robot/C 460 | . 40 180 240 Destroy 0b10 Robot/NC 10 | . 5 5 . Destroy Leader 102 | . 10 22 70 Disable Machine 45 | . 15 15 15 Destroy Structure 26 | . 14 4 8 Lose Combat Pursuer 15 | . 15 . . Influence Decreases 638 | . 90 157 391 Entered New Map 52 | . . 6 46 Time Decay 443 | . 90 121 232 Lost Part 143 | . . 30 113 Squads Dispatched 2 | . 2 . . Investigation . | . . . . Extermination . | . . . . Reinforcement 2 | . 2 . . Assault . | . . . . Garrison . | . . . . Intercept . | . . . . Searches Triggered . | . . . . Construction Impeded . | . . . . Haulers Reinforced . | . . . . Active Scanning Responses . | . . . . Cargo Convoy Interrupts . | . . . . Stealth | -11 -10 -9 -8 --------- Run | Yrd Mat Mat Mat Distress Signals 2 | . 1 . 1 Communications Jammed . | . . . . Distress Signals . | . . . . Times Spotted 43 | . 7 12 24 Peak Tracking Total 10 | . 3 3 10 Tactical Retreats 2 | . 1 1 . ECM-based Alert Blocks 3 | . . 3 . Traps | -11 -10 -9 -8 ------- Run | Yrd Mat Mat Mat Traps Triggered 2 | . 1 1 . Indirectly . | . . . . Trap Hack Attempts . | . . . . Triggered . | . . . . Disarmed . | . . . . Reprogrammed . | . . . . Reused . | . . . . Traps Extracted . | . . . . Installed . | . . . . Triggered . | . . . . Machines | -11 -10 -9 -8 ---------- Run | Yrd Mat Mat Mat Machines Disabled 3 | . 1 1 1 Max in Single Turn 1 | . 1 1 1 Machines Repaired . | . . . . Machines Dismantled . | . . . . Machines Sabotaged . | . . . . Overloaded Fab Kills . | . . . . Hacking | -11 -10 -9 -8 --------- Run | Yrd Mat Mat Mat Machines Accessed 1 | . 1 . . Terminals 1 | . 1 . . Fabricators . | . . . . Repair Stations . | . . . . Recycling Units . | . . . . Scanalyzers . | . . . . Garrison Access . | . . . . Total Hacks 2 | . 2 . . Successful 1 | . 1 . . Failed 1 | . 1 . . Catastrophic . | . . . . Database Lockouts . | . . . . Manual 1 | . 1 . . Terminals 2 | . 2 . . Fabricators . | . . . . Repair Stations . | . . . . Recycling Units . | . . . . Scanalyzers . | . . . . Garrison Access . | . . . . Terminal Hacks 1 | . 1 . . Alert Level 1 | . 1 . . Fabricator Hacks . | . . . . Repair Station Hacks . | . . . . Recycling Unit Hacks . | . . . . Scanalyzer . | . . . . Garrison Access Hacks . | . . . . Unauthorized Hacks . | . . . . Terminals . | . . . . Fabricators . | . . . . Repair Stations . | . . . . Recycling Units . | . . . . Scanalyzers . | . . . . Garrison Access . | . . . . Data Cores Recovered . | . . . . Used . | . . . . Hacking Detections . | . . . . Full Trace Events . | . . . . Feedback Events . | . . . . Feedback Blocked . | . . . . Robot Schematics Acquired . | . . . . Robots Built . | . . . . Authchips . | . . . . Time . | . . . . Total Robot Build Rating . | . . . . Part Schematics Acquired . | . . . . Parts Built . | . . . . Authchips . | . . . . Time . | . . . . Total Part Build Rating . | . . . . Part Studies Acquired . | . . . . Parts Repaired . | . . . . Time . | . . . . Parts Recycled . | . . . . Recycled Matter . | . . . . Retrieved Matter . | . . . . Retrieved Components . | . . . . Parts Scanalyzed . | . . . . Part Schematics Acquired . | . . . . Parts Damaged . | . . . . Bothacking | -11 -10 -9 -8 ------------ Run | Yrd Mat Mat Mat Used RIF Installer . | . . . . Robots Hacked . | . . . . Non-combat . | . . . . Combat . | . . . . Robot Hacks Applied . | . . . . Relay Couplers Released . | . . . . Fabnet Peak Effective % . | . . . . Robots Rewired . | . . . . Allies Hacked . | . . . . Hacks Repelled . | . . . . Allies | -11 -10 -9 -8 -------- Run | Yrd Mat Mat Mat Total Allies . | . . . . Largest Group . | . . . . Highest-Rated Group . | . . . . Highest-Rated Ally . | . . . . Total Orders . | . . . . Ally Attacks . | . . . . Total Damage . | . . . . Kills . | . . . . Allies Corrupted . | . . . . Allies Melted . | . . . . Intel | -11 -10 -9 -8 ------- Run | Yrd Mat Mat Mat Active Infowar (turns) 306 | . 4 302 . ECM 306 | . 4 302 . Robot Analysis Total . | . . . . Derelict Logs Recovered . | . . . . Drone Launches . | . . . . Drone Recoveries . | . . . . Exploration | -11 -10 -9 -8 ------------- Run | Yrd Mat Mat Mat Turns Passed 1199 | 45 253 351 550 Spaces Moved 759 | 38 219 194 308 Core 20 | 7 . . 13 Treads . | . . . . Legs 436 | . . 141 295 Wheels 303 | 31 219 53 . Hover . | . . . . Flight . | . . . . Fastest Speed 50 | 50 100 100 120 Average Speed 113 | 90 100 118 123 Slowest Speed 200 | 100 100 190 200 Overloaded Moves . | . . . . Propulsion Burnouts . | . . . . Robots Hopped . | . . . . Potential Cave-ins . | . . . . Cave-ins Triggered . | . . . . Exploration Rate (%) 22 | 4 42 17 26 Regions Visited 3 Branch Regions . Pre-discovered Areas . | . . . . Known Exits Taken 1 | . . 1 . Unknown Exits Taken 2 | 1 1 . . Scrap Searched . | . . . . Spaces Dug . | . . . . Terrain Destroyed 28 | . 16 3 9 Melee . | . . . . Projectile 12 | . . 3 9 AOE 16 | . 16 . . Terrain Rammed . | . . . . Walls Destroyed . | . . . . Machines Disabled . | . . . . Actions | -11 -10 -9 -8 --------- Run | Yrd Mat Mat Mat Total 956 | 48 238 272 398 Wait 33 | . 1 28 4 Move 756 | 37 218 193 308 Hop . | . . . . Pick Up 33 | 6 4 11 12 Fast Attach . | . . . . Attach 26 | 5 3 5 13 Detach 1 | . . . 1 Swap 5 | . 1 4 . Drop 7 | . 1 5 1 Fire 86 | . 9 22 55 Melee 3 | . . . 3 Ram 2 | . 1 . 1 Kick 4 | . . 4 . Crush . | . . . . Escape Stasis . | . . . . Rewire . | . . . . Trap . | . . . . Miscellaneous . | . . . . Route ------- -11/Scrapyard -10/Materials -9/Materials -8/Materials History --------- Turn | Location | Event 22 | -11/Scrapyard | Discovered new exit (range 15) 46 | -11/Scrapyard | Entered Materials 267 | -10/Materials | Discovered new exit (range 16) 299 | -10/Materials | Entered another Materials area 299 | -9/Materials | Evolved 2 slots: Propulsion x1, Utility x1 318 | -9/Materials | Build established: Mutant 498 | -9/Materials | Discovered new exit (range 10) 522 | -9/Materials | Identified exit to Materials 619 | -9/Materials | System corruption reached 10% 649 | -9/Materials | Lost 3 parts (1u2w) 650 | -9/Materials | Entered another Materials area 650 | -8/Materials | Evolved 2 slots: Propulsion x1, Utility x1 743 | -8/Materials | Lost 4 parts (1p3n) 964 | -8/Materials | Core integrity fell below 50% 1025 | -8/Materials | Lost 3 parts (1p1n1w) 1195 | -8/Materials | Core integrity fell below 20% 1200 | -8/Materials | Destroyed by G-47 Trooper with Particle Gun Last Messages --------------- 01180_ Switching to secondary target: Y-45 Defender. 01181_ M-13 Machinist repairs Y-45 Defender. 01183_ K-01 Serf collects debris. 01183_ Atomic Centrifuge disabled. 01184_ Imp. Light Armor Plating destroyed. 01185_ Aluminum Leg destroyed. 01186_ K-01 Serf collects debris. 01188_ Beam Rifle destroyed. 01189_ K-01 Serf cleans the Atomic Centrifuge. 01189_ Critical hit (Burn: +37). 01191_ Adv. Beam Rifle destroyed. 01191_ Acquired Katana. 01192_ K-01 Serf cleans the Terminal. 01192_ Imp. Ion Engine destroyed. 01193_ K-01 Serf collects debris. 01194_ Carbon-fiber Leg destroyed. 01195_ K-01 Serf collects debris. 01196_ K-01 Serf cleans the Atomic Centrifuge. 01198_ G-47 Trooper destroyed. 01199_ K-01 Serf collects debris. Map ----- +----------------------------------------------------+ | ??????????????????????????????????????????# """"" | | ??????????????????????????????????????????# " """ | | ??????????????????????????????????????????# = % | | ??????????????????????????????????????????# %! | | ????????????????????????????????????????########## | | ??????????????????????????? ??########### ###?#### | | ??????????????????????????? ??# %!### | | ??????????????????????????? ??# ] %/! | | ??????????????????????????? ??# == %%### | | ??????????????????????????? ??# == *!# # | | ??????????????????????????? ??# = [#?# | | ?????????????????????????#? ??# #?# | | ?????????????????######?# # #?# #?# | | ?????????????????#! # + #?# | | ?????????????????# """ # ### #?# | | ?????????????????# "T" # #?# #?# | | ?????????????????? " " + #?# #?# | | ?????????????????# u!k=# #?#######+#######?# | | ?????????????????# """ # ###### #???## | | ?????????????????+ """ # ##### | | ?????????????????# """ # | | ?????????????????# Y w + | | ?????????????????# """ k # | | ?????????????????# """gYm/ ##### ! | | ?????????????????# """k!%######## #???### # | | ?????????????????# =@#??????####+####?????? # | | ?????????????????# """!%*#???????? ???????? # | | ?????????????????# "" = #?????? ] ?????? # | | ?????????????????# "" #?????# ! #??### # | | ?????????????????# #?????# + | | ?????????????????# #?????# !! """#??##### | | ?????????????????######Y###?????# !/ R"#??????? | | ?????????????????????? ????????# ! """#??????? | | ??????????????????????!!???????? ! ???????? | | ?????????????????????!!!???????###########???????? | | ?????????????????????!!!?????????????????????????? | | ?????????????????????###?????????????????????????? | | ?????????????????????????????????????????????????? | | ?????????????????????????????????????????????????? | | ?????????????????????????????????????????????????? | | ?????????????????????????????????????????????????? | | ?????????????????????????????????????????????????? | | ?????????????????????????????????????????????????? | | ?????????????????????????????????????????????????? | | ?????????????????????????????????????????????????? | | ?????????????????????????????????????????????????? | | ?????????????????????????????????????????????????? | | ?????????????????????????????????????????????????? | | ?????????????????????????????????????????????????? | | ?????????????????????????????????????????????????? | +----------------------------------------------------+ Best States ------------- Heat Dissipation 31 Energy Generation 14 Energy Capacity 265 Matter Stores 300 Matter Capacity 300 Sight Range 16 Terrain Scan Density 10 ECM Strength 1 Armor Coverage 150 Power Shielding 33 Evasion (%) 55 Targeting Accuracy 5 Item Schematics ----------------- None Robot Schematics ------------------ None Fabricated ------------ Nothing Repaired ---------- Nothing Studied --------- None Alien Tech Used ----------------- None Achievements -------------- Ghost 'Em Well Done Challenges ------------ None Game ------ Seed SmartbombDeflectorHumpback Manual? 0 Play Time 00:21:42 Cumulative 10.9 hours Start 2026.02.13 @ 17:07:08 End 2026.02.13 @ 19:31:54 Sessions 1 Manual Loads 0 Difficulty Rogue Special Mode None Game No. 34 Rogue 28 Adventurer 6 Explorer 0 Win Type - Total 0 Types 0/0/0/0/0/0/0/0/0/0 Lore% 9 Gallery% 15 Achievement% 11 Wizard Run 0 Options --------- Layout 0 ASCII 0 Keyboard 1 Movement Numpad Keybinds 0 Fullscreen 1 Font 24/Swanston Map View 76x50 Zoom Use 0% Tactical HUD 1 Map Filters NONE Filters NONE Steam 1 RUN: ccf5f5b5-b765-4341-869f-d3f2c7217a02